bitfinex/quotes_BTCUSD_20260117
["timestamp","ask_amount","ask_price","bid_price","bid_amount"]
[1768660456327,0.06287535,95427.0,95423.0,0.01047965]
[1768660456547,0.06287541,95427.0,95423.0,0.01047965]
[1768660456724,0.01047921,95427.0,95423.0,0.06287748]
[1768660457144,0.12696,95428.0,95424.0,0.01047954]
[1768660457365,0.12696,95428.0,95425.0,0.01047943]
[1768660457902,0.1374391,95428.0,95425.0,0.01047943]
[1768660458741,0.1374391,95428.0,95424.0,0.01043426]
[1768660458915,0.1374391,95428.0,95425.0,0.01047943]
[1768660459703,0.1374391,95428.0,95425.0,0.01043415]
[1768660459954,0.1374391,95428.0,95425.0,0.01038887]
[1768660461884,0.12696,95428.0,95425.0,0.01038887]
[1768660463740,0.1374391,95428.0,95423.0,0.01047965]
[1768660463963,0.06287595,95426.0,95422.0,0.01095255]
[1768660464180,0.01047943,95425.0,95422.0,0.00047279]
[1768660464607,0.06287712,95425.0,95422.0,0.00047279]
[1768660464846,0.01047943,95425.0,95418.0,0.0106397]
[1768660465055,0.29844157,95420.0,95416.0,0.01048042]
[1768660465259,0.05240026,95420.0,95416.0,0.01048042]
[1768660465887,0.12696,95419.0,95418.0,0.0104802]
[1768660466102,0.12696,95419.0,95418.0,0.06288121]
[1768660466517,0.01095189,95425.0,95421.0,0.01047987]
[1768660466734,0.00047246,95425.0,95422.0,0.01047976]
[1768660466935,0.12696,95424.0,95422.0,0.06287842]
[1768660467398,0.12696,95424.0,95423.0,0.05239826]
[1768660467635,0.12696,95424.0,95423.0,0.05235298]
[1768660468044,0.12743246,95425.0,95424.0,0.05239771]
[1768660469968,0.12743246,95425.0,95423.0,0.05239808]
[1768660470338,0.12743246,95425.0,95424.0,0.05239771]
[1768660470974,0.12743246,95425.0,95423.0,0.05239774]
[1768660471555,0.12743246,95425.0,95422.0,0.01043448]
[1768660471758,0.13791189,95425.0,95422.0,0.01043448]
[1768660472596,0.12743246,95425.0,95422.0,0.01043448]
[1768660472995,0.12743246,95425.0,95422.0,0.01023977]
[1768660473938,0.12743246,95425.0,95422.0,0.06263812]
[1768660474763,0.12743246,95425.0,95419.0,0.05240046]
[1768660474764,0.13791189,95425.0,95420.0,0.06287988]
[1768660474920,0.01047954,95424.0,95421.0,0.01047987]
[1768660477570,0.01047965,95423.0,95419.0,0.01048009]
[1768660478811,0.01047976,95422.0,95418.0,0.0104802]
[1768660479384,0.01047998,95420.0,95416.0,0.01048042]
[1768660479587,0.01047998,95420.0,95417.0,0.01048031]
[1768660481548,0.01047998,95420.0,95416.0,0.06288246]
[1768660481549,0.01047998,95420.0,95416.0,0.01048042]
[1768660481951,0.06288027,95420.0,95416.0,0.01048042]
[1768660482616,0.01048009,95419.0,95416.0,0.01048042]
[1768660483030,0.0104802,95418.0,95414.0,0.01048064]
[1768660483161,0.01048031,95417.0,95413.0,0.01048075]
[1768660483361,0.06102006,95417.0,95413.0,0.01048075]
[1768660483568,0.06288274,95416.0,95411.0,0.05240439]
[1768660483793,0.01048064,95414.0,95411.0,0.01048097]
[1768660485382,0.0628839,95414.0,95410.0,0.01048108]
[1768660486973,0.0104802,95418.0,95409.0,0.05256497]
[1768660486974,0.01047789,95439.0,95433.0,0.01047855]
[1768660487200,0.28811689,95438.0,95435.0,0.01028365]
[1768660487410,0.28811689,95438.0,95435.0,0.01008897]
[1768660487823,0.29859489,95438.0,95434.0,0.01047844]
[1768660488033,0.01047811,95437.0,95433.0,0.01047855]
[1768660488473,0.28811689,95438.0,95434.0,0.01047844]
[1768660488713,0.29859489,95438.0,95435.0,0.01047833]
[1768660488894,0.29859489,95438.0,95434.0,0.01047844]
[1768660489698,0.28811689,95438.0,95435.0,0.01047833]
[1768660489908,0.28811689,95438.0,95435.0,0.06282461]
[1768660490101,0.28811689,95438.0,95435.0,0.06277934]
[1768660490311,0.28811689,95438.0,95435.0,0.01038779]
[1768660490723,0.28811689,95438.0,95435.0,0.0627793]
[1768660491223,0.28811689,95438.0,95435.0,0.01038779]
[1768660491421,0.29859489,95438.0,95435.0,0.01038779]
[1768660491698,0.28827639,95452.0,95446.0,0.01047712]
[1768660491870,0.0001595,95452.0,95449.0,0.01028213]
[1768660492318,0.0001595,95452.0,95447.0,0.01047701]
[1768660492319,0.01063596,95452.0,95447.0,0.01047701]
[1768660492494,0.01063596,95452.0,95448.0,0.0104769]
[1768660492705,0.0001595,95452.0,95449.0,0.01047679]
[1768660493178,0.0001595,95452.0,95449.0,0.06286074]
[1768660493386,0.0001595,95452.0,95449.0,0.01047679]
[1768660493585,0.0001595,95452.0,95445.0,0.01047723]
[1768660493586,0.00064871,95461.0,95457.0,0.01047592]
[1768660493770,0.00064871,95461.0,95458.0,0.06285486]
[1768660493969,1e-08,95461.0,95460.0,0.05237795]
[1768660494837,1e-08,95461.0,95458.0,0.01047581]
[1768660494986,1e-08,95461.0,95458.0,0.06285476]
[1768660495860,1e-08,95461.0,95458.0,0.01047581]
[1768660496623,0.01047549,95461.0,95457.0,0.01028128]
[1768660497691,0.01047559,95460.0,95457.0,0.01028128]
[1768660498061,0.01047549,95461.0,95457.0,0.01028128]
[1768660498402,1e-08,95461.0,95458.0,0.01047581]
[1768660499230,1e-08,95461.0,95460.0,0.05237795]
[1768660500381,1e-08,95461.0,95458.0,0.01047581]
[1768660500603,1e-08,95461.0,95458.0,0.05237905]
[1768660501312,1e-08,95461.0,95459.0,0.05237828]
[1768660501713,1e-08,95461.0,95457.0,0.01028128]
[1768660501981,0.31200484,95460.0,95453.0,0.01047636]
[1768660502807,0.31200484,95460.0,95457.0,0.01047592]
[1768660502954,0.31200484,95458.0,95440.0,0.03142781]
[1768660503154,0.01047636,95453.0,95439.0,0.12696]
[1768660503325,0.01047657,95451.0,95446.0,0.01047712]
[1768660503522,0.31200484,95449.0,95446.0,0.06286253]
[1768660503727,0.31200484,95449.0,95447.0,0.06286186]
[1768660504010,0.31200484,95449.0,95447.0,0.01047701]
[1768660504212,0.01047668,95450.0,95447.0,0.01047701]
[1768660505338,0.01047657,95451.0,95447.0,0.01047701]
[1768660506511,0.01047668,95450.0,95446.0,0.01047712]
[1768660506689,0.06286013,95450.0,95446.0,0.01047712]
[1768660507550,0.01047668,95450.0,95446.0,0.01047712]
[1768660508803,0.01047679,95449.0,95446.0,0.00422372]
[1768660509612,0.01047657,95451.0,95447.0,0.01047701]
[1768660511176,0.06285951,95451.0,95447.0,0.01047701]
[1768660511793,0.01047668,95450.0,95447.0,0.01047701]
[1768660512864,0.01047537,95462.0,95458.0,0.01047581]
[1768660513033,0.00010392,95462.0,95461.0,0.06285289]
[1768660513406,0.00010392,95462.0,95461.0,0.01047548]
[1768660513638,0.00010392,95462.0,95461.0,0.06285289]
[1768660513812,0.00010392,95462.0,95461.0,0.01047548]
[1768660514623,0.0104746,95469.0,95463.0,0.01047526]
[1768660515147,0.0104746,95469.0,95464.0,0.05237561]
[1768660516289,0.0104746,95469.0,95465.0,0.01047504]
[1768660516617,0.0104746,95469.0,95465.0,0.06285021]
[1768660516790,0.0104746,95469.0,95466.0,0.01047493]
[1768660518122,0.32247911,95472.0,95467.0,0.06284846]
[1768660519189,0.01047438,95471.0,95466.0,0.01047493]
[1768660519394,0.01047438,95471.0,95467.0,0.01047482]
[1768660519798,0.01047438,95471.0,95468.0,0.01047471]
[1768660520393,0.14950435,95473.0,95470.0,0.05237247]
[1768660520596,0.01047427,95472.0,95468.0,0.01047471]
[1768660520837,0.06284607,95472.0,95468.0,0.01047471]
[1768660521045,0.0628464,95471.0,95467.0,0.01047482]
[1768660521414,0.01047449,95470.0,95467.0,0.00892559]
[1768660522235,0.01047449,95470.0,95465.0,0.01047504]
[1768660522836,0.01047449,95470.0,95465.0,0.06284997]
[1768660523192,0.01047438,95471.0,95466.0,0.06284955]
[1768660523361,0.01047438,95471.0,95468.0,0.01047471]
[1768660523775,0.12696,95473.0,95470.0,0.01047449]
[1768660523973,0.13743394,95475.0,95470.0,0.01047449]
[1768660524392,0.13743394,95475.0,95471.0,0.01039604]
[1768660525247,0.01047438,95471.0,95468.0,0.01047471]
[1768660525462,0.01047416,95473.0,95468.0,0.01047471]
[1768660525614,0.01047416,95473.0,95469.0,0.0104746]
[1768660526009,0.1898037,95475.0,95470.0,0.01047449]
[1768660526336,0.01047405,95474.0,95471.0,0.01047438]
[1768660527765,0.13743394,95475.0,95471.0,0.01047438]
[1768660528024,0.13743394,95475.0,95472.0,0.01047427]
[1768660528243,0.01047405,95474.0,95470.0,0.01047449]
[1768660528987,0.01047416,95473.0,95469.0,0.0104746]
[1768660530379,0.01047449,95470.0,95467.0,0.01047482]
[1768660533736,0.01047438,95471.0,95467.0,0.06284879]
[1768660534422,0.01047449,95470.0,95466.0,0.01047493]
[1768660535543,0.01047449,95470.0,95467.0,0.01047482]
[1768660536386,0.01047427,95472.0,95468.0,0.01047471]
[1768660536518,0.01047427,95472.0,95469.0,0.0104746]
[1768660536714,0.01047427,95472.0,95469.0,0.00761117]
[1768660536918,0.01047427,95472.0,95469.0,0.00681813]
[1768660537368,0.03301851,95473.0,95469.0,0.05919111]
[1768660537676,0.03301851,95473.0,95470.0,0.01047449]
[1768660537878,0.01047416,95473.0,95470.0,0.01047449]
[1768660538093,0.03301851,95473.0,95470.0,0.01047449]
[1768660538294,0.01047416,95473.0,95470.0,0.01039614]
[1768660538494,0.0853895,95473.0,95469.0,0.00681813]
[1768660538696,0.0853895,95473.0,95468.0,0.06284723]
[1768660538697,0.01047427,95472.0,95468.0,0.01047471]
[1768660539071,0.01047427,95472.0,95468.0,0.06284785]
[1768660539267,0.01047427,95472.0,95469.0,0.0104746]
[1768660539881,0.01047427,95472.0,95469.0,0.06284758]
[1768660540071,0.01047427,95472.0,95469.0,0.06276922]
[1768660540270,0.02254435,95472.0,95469.0,0.06276922]
[1768660541121,0.02254435,95472.0,95469.0,0.01039624]
[1768660541282,0.02254435,95472.0,95468.0,0.01047471]
[1768660541283,0.02254435,95471.0,95468.0,0.01047471]
[1768660542169,0.08539014,95472.0,95468.0,0.01047471]
[1768660542435,0.02254435,95471.0,95468.0,0.01047471]
[1768660542708,0.02254435,95470.0,95468.0,0.01047471]
[1768660542974,0.02254435,95471.0,95468.0,0.01047471]
[1768660543187,0.02254435,95470.0,95468.0,0.06284814]
[1768660543608,0.02254435,95471.0,95468.0,0.01047471]
[1768660543813,0.02254435,95470.0,95468.0,0.01047471]
[1768660544017,0.02254435,95471.0,95468.0,0.01047471]
[1768660544225,0.02254435,95470.0,95468.0,0.01047471]
[1768660544412,0.01047449,95470.0,95467.0,0.01047482]
[1768660544709,0.02254435,95469.0,95467.0,0.01047482]
[1768660545388,0.03301862,95472.0,95469.0,0.0104746]
[1768660545600,0.02254435,95471.0,95469.0,0.0104746]
[1768660545815,0.02254435,95470.0,95469.0,0.0104746]
[1768660546029,0.02254435,95470.0,95469.0,0.06284762]
[1768660547296,0.02254435,95470.0,95467.0,0.06284888]
[1768660547509,0.02254435,95472.0,95469.0,0.05237254]
[1768660548137,0.01047416,95473.0,95469.0,0.05237254]
[1768660548138,0.03301851,95473.0,95469.0,0.05237254]
[1768660548350,0.03301851,95473.0,95470.0,0.01047449]
[1768660548962,0.03301851,95473.0,95469.0,0.05237254]
[1768660549163,0.03301862,95472.0,95468.0,0.01047471]
[1768660549385,0.08539009,95472.0,95468.0,0.01047471]
[1768660549558,0.03301862,95472.0,95468.0,0.01047471]
[1768660549762,0.01047427,95472.0,95468.0,0.01047471]
[1768660549964,0.05237192,95471.0,95467.0,0.01047482]
[1768660550291,0.0104746,95469.0,95466.0,0.01047493]
[1768660550470,0.0104746,95469.0,95466.0,0.06284958]
[1768660550796,0.0104746,95469.0,95466.0,0.01047493]
[1768660551001,0.03301862,95472.0,95467.0,0.06284852]
[1768660551573,0.03301862,95472.0,95467.0,0.01047482]
[1768660552368,0.08539019,95472.0,95467.0,0.01047482]
[1768660552562,0.03301862,95472.0,95468.0,0.01047471]
[1768660552762,0.02254435,95472.0,95468.0,0.01047471]
[1768660552986,0.02254435,95472.0,95468.0,0.06284808]
[1768660553515,0.02254435,95471.0,95468.0,0.01028026]
[1768660553845,0.03301873,95471.0,95468.0,0.01028026]
[1768660554052,0.02254435,95471.0,95468.0,0.01028026]
[1768660554264,0.02254435,95471.0,95468.0,0.06245924]
[1768660554816,0.03301873,95471.0,95467.0,0.01047482]
[1768660554982,0.03301873,95471.0,95468.0,0.01047471]
[1768660556773,0.03301873,95471.0,95468.0,0.06284822]
[1768660557211,0.02254435,95470.0,95468.0,0.06284822]
[1768660557412,0.02254435,95469.0,95468.0,0.06284822]
[1768660557872,0.02254435,95469.0,95468.0,0.05237357]
[1768660558285,0.02254435,95469.0,95466.0,0.01047493]
[1768660558500,0.02254435,95468.0,95466.0,0.0628495]
[1768660558751,0.01047449,95470.0,95466.0,0.0628495]
[1768660558752,0.02254435,95467.0,95466.0,0.0628495]
[1768660559107,0.01047416,95473.0,95469.0,0.0104746]
[1768660559699,0.01047427,95472.0,95469.0,0.0104746]
[1768660560854,0.01047427,95472.0,95469.0,0.01039623]
[1768660561456,0.01047427,95472.0,95469.0,0.01031785]
[1768660561828,0.01047405,95474.0,95470.0,0.01047449]
[1768660562030,0.01047405,95474.0,95471.0,0.01047438]
[1768660562251,0.01047416,95473.0,95470.0,0.01047449]
[1768660565359,0.01047405,95474.0,95470.0,0.06284687]
[1768660566581,0.01047405,95474.0,95471.0,0.01047438]
[1768660567386,0.06284465,95474.0,95470.0,0.01047449]
[1768660567588,0.01047416,95473.0,95470.0,0.01047449]
[1768660567767,0.06284498,95473.0,95470.0,0.01047449]
[1768660568418,0.06284498,95473.0,95469.0,0.01031785]
[1768660568620,0.01047427,95472.0,95469.0,0.01031785]
[1768660568798,0.06284566,95472.0,95469.0,0.01031785]
[1768660570999,0.02262315,95471.0,95469.0,0.01031785]
[1768660571209,0.02262315,95470.0,95467.0,0.01047482]
[1768660571386,0.02262315,95469.0,95467.0,0.01047482]
[1768660571746,0.02262315,95468.0,95467.0,0.01047482]
[1768660572498,0.02262315,95468.0,95467.0,0.06284893]
[1768660572697,0.02262315,95468.0,95467.0,0.01047482]
[1768660574306,0.02262315,95468.0,95467.0,0.06284893]
[1768660581419,0.01047405,95474.0,95470.0,0.01047449]
[1768660582211,0.06284453,95474.0,95470.0,0.01047449]
[1768660582424,0.01047427,95472.0,95468.0,0.01047471]
[1768660582630,0.01047427,95472.0,95469.0,0.0104746]
[1768660582765,0.01047427,95472.0,95468.0,0.01047471]
[1768660583135,0.06284574,95472.0,95468.0,0.01047471]
[1768660583309,0.01047438,95471.0,95468.0,0.01047471]
[1768660586485,0.0104746,95469.0,95466.0,0.01047493]
[1768660586682,0.01047449,95470.0,95466.0,0.06284954]
[1768660586946,0.00018651,95477.0,95460.0,0.01047559]
[1768660586947,0.0104746,95469.0,95460.0,0.01047559]
[1768660587128,0.01047559,95460.0,95457.0,0.01047592]
[1768660587339,0.0104757,95459.0,95457.0,0.00010392]
[1768660587551,0.46773028,95461.0,95436.0,0.36783504]
[1768660587552,0.45725683,95457.0,95436.0,0.36783504]
[1768660587762,0.06285883,95452.0,95445.0,0.01047723]
[1768660587969,0.01047646,95452.0,95445.0,0.01047723]
[1768660588201,0.4048772,95452.0,95450.0,0.0523833]
[1768660588407,0.01047625,95454.0,95451.0,0.01047657]
[1768660589637,0.01047646,95452.0,95448.0,0.0104769]
[1768660589850,0.01047668,95450.0,95447.0,0.01047701]
[1768660590060,0.01047657,95451.0,95448.0,0.0104769]
[1768660590287,0.01047646,95452.0,95449.0,0.01047679]
[1768660590934,0.01047625,95454.0,95449.0,0.01047679]
[1768660591147,0.41535312,95457.0,95450.0,0.01047668]
[1768660591359,0.41535312,95457.0,95454.0,0.01047625]
[1768660591558,0.01047603,95456.0,95450.0,0.01047668]
[1768660592201,0.01047614,95455.0,95451.0,0.01047657]
[1768660592612,0.01047603,95456.0,95453.0,0.01047636]
[1768660592846,0.01047614,95455.0,95447.0,0.01047701]
[1768660593044,0.01047646,95452.0,95449.0,0.01047679]
[1768660593480,0.01047614,95455.0,95450.0,0.05238331]
[1768660593663,0.01047614,95455.0,95451.0,0.06285901]
[1768660595305,1e-08,95456.0,95455.0,0.0523807]
[1768660595536,0.12696,95459.0,95456.0,0.06285573]
[1768660595774,0.11506955,95459.0,95456.0,0.06281045]
[1768660596136,0.00047574,95460.0,95459.0,0.0523785]
[1768660596742,0.05237297,95470.0,95464.0,0.01047515]
[1768660596945,0.01047482,95467.0,95464.0,0.01042988]
[1768660598861,0.01047471,95468.0,95464.0,0.01042988]
[1768660599284,0.01047482,95467.0,95464.0,0.01042988]
[1768660599563,0.01047482,95467.0,95464.0,0.01038461]
[1768660602921,0.0104746,95469.0,95465.0,0.01047504]
[1768660603255,0.00014169,95470.0,95466.0,0.0628495]
[1768660603471,0.00014169,95470.0,95467.0,0.01047482]
[1768660603670,0.00014169,95470.0,95468.0,0.05237357]
[1768660603874,0.00014169,95470.0,95467.0,0.06284841]
[1768660604457,0.00014169,95470.0,95468.0,0.05237343]
[1768660604661,0.00014169,95470.0,95467.0,0.06284878]
[1768660606882,0.00014169,95470.0,95467.0,0.01047482]
[1768660607477,0.02258924,95469.0,95467.0,0.01047482]
[1768660607642,0.02258924,95468.0,95467.0,0.01047482]
[1768660608916,0.02258924,95468.0,95466.0,0.01047493]
[1768660609160,0.02258924,95467.0,95466.0,0.01047493]
[1768660609362,0.02258924,95468.0,95466.0,0.01047493]
[1768660609543,0.02258924,95467.0,95466.0,0.01047493]
[1768660610860,0.06284436,95474.0,95470.0,0.01047449]
[1768660611120,0.01058782,95474.0,95470.0,0.01042922]
[1768660611669,0.01058782,95474.0,95470.0,0.01035075]
[1768660611874,0.01047416,95473.0,95470.0,0.01035075]
[1768660612316,0.01047416,95473.0,95469.0,0.0104746]
[1768660612715,0.01047427,95472.0,95469.0,0.01042933]
[1768660613408,0.01047438,95471.0,95467.0,0.01047482]
[1768660613610,0.01047438,95471.0,95467.0,0.06284879]
[1768660614219,0.01047438,95471.0,95468.0,0.06284826]
[1768660614423,0.01047438,95471.0,95468.0,0.01047471]
[1768660614781,0.01047449,95470.0,95466.0,0.01047493]
[1768660615542,0.01047471,95468.0,95464.0,0.01077515]
[1768660615735,0.06284836,95468.0,95464.0,0.01077515]
[1768660616017,0.01047482,95467.0,95464.0,0.0003]
[1768660616698,0.01047537,95462.0,95456.0,0.01047603]
[1768660616916,0.40665485,95460.0,95456.0,0.01047603]
[1768660617131,0.0104757,95459.0,95456.0,0.01047603]
[1768660617259,0.00638332,95459.0,95456.0,0.01047603]
[1768660617464,0.01047559,95460.0,95456.0,0.01047603]
[1768660617667,0.0104757,95459.0,95455.0,0.01047614]
[1768660617887,0.01047559,95460.0,95456.0,0.01047603]
[1768660619110,0.06285367,95460.0,95456.0,0.01047603]
[1768660619556,0.0104757,95459.0,95456.0,0.01047603]
[1768660619861,0.01047515,95464.0,95460.0,0.06285352]
[1768660620022,0.4590283,95467.0,95460.0,0.06285352]
[1768660620023,0.01047493,95466.0,95463.0,0.01047526]
[1768660620229,0.12696,95469.0,95466.0,0.01047493]
[1768660620658,0.01047449,95470.0,95466.0,0.01047493]
[1768660620862,0.01047449,95470.0,95467.0,0.01047482]
[1768660621548,0.01047449,95470.0,95466.0,0.01047493]
[1768660621690,0.01047449,95470.0,95467.0,0.01047482]
[1768660621894,0.01058782,95474.0,95467.0,0.01047482]
[1768660622151,0.05237247,95470.0,95464.0,0.06285081]
[1768660622371,0.01047471,95468.0,95465.0,0.01047504]
[1768660622515,0.01047471,95468.0,95459.0,0.41072885]
[1768660622516,0.01047504,95465.0,95459.0,0.0104757]
[1768660622712,0.01047537,95462.0,95458.0,0.06285478]
[1768660622966,0.01047537,95462.0,95458.0,0.06285466]
[1768660623133,0.01047537,95462.0,95459.0,0.0104757]
[1768660623338,0.01047537,95462.0,95458.0,0.01047581]
[1768660623523,0.01047537,95462.0,95459.0,0.0104757]
[1768660623721,0.01047526,95463.0,95459.0,0.0104757]
[1768660624247,0.03307271,95463.0,95459.0,0.0104757]
[1768660624793,0.03307271,95463.0,95460.0,0.01047559]
[1768660625180,0.02259745,95463.0,95460.0,0.06285342]
[1768660625336,0.02261053,95462.0,95460.0,0.06285342]
[1768660625549,0.01047526,95463.0,95459.0,0.0104757]
[1768660625768,0.0330859,95462.0,95459.0,0.0104757]
[1768660625986,0.01047537,95462.0,95459.0,0.0104757]
[1768660627038,0.02261283,95461.0,95459.0,0.0104757]
[1768660627247,0.01047548,95461.0,95457.0,0.01047592]
[1768660627486,0.01047548,95461.0,95457.0,0.06285535]
[1768660627753,0.01047548,95461.0,95458.0,0.01047581]
[1768660627970,0.01047548,95461.0,95458.0,0.06285486]
[1768660628197,0.01047548,95461.0,95458.0,0.01047581]
[1768660629933,0.0104757,95459.0,95456.0,0.01047603]
[1768660630154,0.01047581,95458.0,95454.0,0.01047625]
[1768660630436,0.01047581,95458.0,95455.0,0.01047614]
[1768660630650,0.01047537,95462.0,95457.0,0.01047592]
[1768660630875,0.02261379,95461.0,95457.0,0.01047592]
[1768660631076,0.01047537,95462.0,95457.0,0.06285538]
[1768660631280,0.02261379,95461.0,95458.0,0.05237864]
[1768660631476,0.01047537,95462.0,95458.0,0.05237864]
[1768660631704,0.03308948,95461.0,95458.0,0.01047581]
[1768660631838,0.01047526,95463.0,95460.0,0.01047559]
[1768660632044,0.02261401,95462.0,95460.0,0.06285352]
[1768660632240,0.06284996,95467.0,95460.0,0.06285352]
[1768660632241,0.01047493,95466.0,95460.0,0.06285352]
[1768660632471,0.01047493,95466.0,95463.0,0.01047526]
[1768660632670,0.0104746,95469.0,95464.0,0.06285077]
[1768660633280,0.06284763,95469.0,95464.0,0.06285077]
[1768660633506,0.0104746,95469.0,95464.0,0.06285077]
[1768660633945,0.05237425,95467.0,95461.0,0.05237741]
[1768660634156,0.01047493,95466.0,95463.0,0.01047526]
[1768660635078,0.06284971,95466.0,95462.0,0.01047537]
[1768660635286,0.01047504,95465.0,95462.0,0.01047537]
[1768660635501,0.06285028,95465.0,95462.0,0.01047537]
[1768660636062,0.06285028,95465.0,95460.0,0.06285339]
[1768660636277,0.06285091,95464.0,95460.0,0.01047559]
[1768660636476,0.06285177,95463.0,95458.0,0.06285465]
[1768660636800,0.01047537,95462.0,95458.0,0.01047581]
[1768660637210,0.0628523,95462.0,95458.0,0.01047581]
[1768660637629,0.01047537,95462.0,95458.0,0.01047581]
[1768660637763,0.06285237,95462.0,95458.0,0.01047581]
[1768660638176,0.01047548,95461.0,95458.0,0.01047581]
[1768660638823,0.06285309,95461.0,95456.0,0.06285606]
[1768660639028,0.01047548,95461.0,95457.0,0.01047592]
[1768660639839,0.01047548,95461.0,95458.0,0.01047581]
[1768660640040,0.01047515,95464.0,95460.0,0.05237761]
[1768660640245,0.01047515,95464.0,95459.0,0.06285406]
[1768660641061,0.01047515,95464.0,95460.0,0.06285354]
[1768660643079,0.01047526,95463.0,95460.0,0.01047559]
[1768660643906,0.01047515,95464.0,95460.0,0.06285322]
[1768660644089,0.01047515,95464.0,95461.0,0.01047548]
[1768660644444,0.0226157,95463.0,95460.0,0.01047559]
[1768660644652,0.03309096,95463.0,95460.0,0.01047559]
[1768660644855,0.01047537,95462.0,95458.0,0.01047581]
[1768660645192,0.03309096,95463.0,95459.0,0.0104757]
[1768660645368,0.08546746,95463.0,95459.0,0.0104757]
[1768660645786,0.06285227,95462.0,95458.0,0.01047581]
[1768660646369,0.01047537,95462.0,95458.0,0.01047581]
[1768660646687,0.02261769,95463.0,95460.0,0.01047559]
[1768660646894,0.02261769,95463.0,95461.0,0.05237688]
[1768660647127,0.02261769,95464.0,95461.0,0.06285236]
[1768660647436,0.02261769,95463.0,95462.0,0.05237686]
[1768660647559,0.02261769,95465.0,95462.0,0.06285223]
[1768660647764,0.02261769,95464.0,95462.0,0.06285223]
[1768660647973,0.02261769,95463.0,95462.0,0.06285223]
[1768660648181,0.02261769,95463.0,95458.0,0.01047581]
[1768660648182,0.00011377,95474.0,95463.0,0.38852549]
[1768660648399,0.00011377,95474.0,95471.0,0.0628462]
[1768660648632,0.00011377,95474.0,95471.0,0.05865362]
[1768660648868,0.00011377,95474.0,95473.0,0.05237082]
[1768660649670,1e-08,95474.0,95473.0,0.05237082]
[1768660650319,1e-08,95474.0,95472.0,0.05237136]
[1768660650535,1e-08,95474.0,95473.0,0.05237082]
[1768660651788,1e-08,95474.0,95472.0,0.05237125]
[1768660652368,1e-08,95474.0,95471.0,0.05865337]
[1768660652813,1e-08,95474.0,95472.0,0.05237124]
[1768660654167,1e-08,95474.0,95471.0,0.0062818]
[1768660654307,1e-08,95474.0,95472.0,0.05237087]
[1768660655570,1e-08,95474.0,95473.0,0.05237082]
[1768660656824,1e-08,95474.0,95471.0,0.05865357]
[1768660657425,1e-08,95474.0,95472.0,0.05237133]
[1768660658042,1e-08,95474.0,95471.0,0.05865358]
[1768660658442,1e-08,95474.0,95471.0,0.05865345]
[1768660658650,1e-08,95474.0,95470.0,0.01047449]
[1768660658850,0.01047416,95473.0,95469.0,0.0104746]
[1768660659053,0.06284511,95473.0,95469.0,0.0104746]
[1768660659253,0.01047416,95473.0,95469.0,0.0104746]
[1768660659457,0.05237138,95472.0,95469.0,0.0104746]
[1768660660155,0.06284565,95472.0,95467.0,0.01047482]
[1768660660363,0.05237198,95471.0,95467.0,0.01047482]
[1768660660543,0.01047449,95470.0,95467.0,0.01047482]
[1768660660739,0.01047449,95470.0,95466.0,0.01047493]
[1768660660740,0.0104746,95469.0,95466.0,0.01047493]
[1768660661820,0.01047482,95467.0,95463.0,0.01047526]
[1768660662022,0.01047493,95466.0,95463.0,0.01047526]
[1768660662231,0.01047493,95466.0,95463.0,0.06285148]
[1768660662512,0.01047493,95466.0,95463.0,0.01047526]
[1768660662720,0.01047493,95466.0,95460.0,0.01047559]
[1768660662937,0.40501546,95465.0,95461.0,0.13739548]
[1768660663064,0.01047504,95465.0,95461.0,0.13739548]
[1768660663285,0.01047504,95465.0,95462.0,0.01047537]
[1768660663480,0.01047482,95467.0,95461.0,0.12692]
[1768660663705,0.01047482,95467.0,95461.0,0.13739548]
[1768660663706,0.01047515,95464.0,95461.0,0.13739548]
[1768660663912,0.41549061,95464.0,95461.0,0.12692]
[1768660664126,0.40501546,95464.0,95461.0,0.13739548]
[1768660664327,0.01047471,95468.0,95462.0,0.01047537]
[1768660664532,0.01047471,95468.0,95465.0,0.01047504]
[1768660664992,0.01047449,95470.0,95465.0,0.06285025]
[1768660665350,0.01047449,95470.0,95466.0,0.05237454]
[1768660665586,0.01047449,95470.0,95467.0,0.06284891]
[1768660665979,0.42761638,95472.0,95468.0,0.06284824]
[1768660666233,0.02260092,95471.0,95469.0,0.0104746]
[1768660666377,0.40501546,95472.0,95469.0,0.0104746]
[1768660668160,0.40501546,95472.0,95466.0,0.06284939]
[1768660668161,0.40501546,95472.0,95466.0,0.01047493]
[1768660668364,0.01047438,95471.0,95467.0,0.01047482]
[1768660668586,0.06284683,95471.0,95467.0,0.01047482]
[1768660668797,0.01047438,95471.0,95467.0,0.01047482]
[1768660669001,0.01047406,95474.0,95470.0,0.01047449]
[1768660669205,0.01047438,95471.0,95468.0,0.01047471]
[1768660670992,0.01047438,95471.0,95467.0,0.01047482]
[1768660672080,0.01047438,95471.0,95467.0,0.06284874]
[1768660672286,0.01047438,95471.0,95467.0,0.01047482]
[1768660672784,0.06284636,95471.0,95467.0,0.01047482]
[1768660673504,0.01047416,95473.0,95468.0,0.01047471]
[1768660673722,0.01047427,95472.0,95467.0,0.01047482]
[1768660673920,0.06284642,95471.0,95467.0,0.01047482]
[1768660674337,0.01047449,95470.0,95467.0,0.01047482]
[1768660675515,0.0628463,95471.0,95467.0,0.01047482]
[1768660675935,0.01047438,95471.0,95467.0,0.01047482]
[1768660676871,0.01047438,95471.0,95467.0,0.06284867]
[1768660677072,0.01047427,95472.0,95468.0,0.06284822]
[1768660678403,0.03307649,95472.0,95468.0,0.06284822]
[1768660679307,0.08544787,95472.0,95468.0,0.01047471]
[1768660679547,0.01047438,95471.0,95466.0,0.01047493]
[1768660679966,0.0104746,95469.0,95466.0,0.01047493]
[1768660680394,0.01047471,95468.0,95464.0,0.01047515]
[1768660680602,0.01047449,95470.0,95465.0,0.01047504]
[1768660680814,0.01047438,95471.0,95467.0,0.01047482]
[1768660681030,0.01047438,95471.0,95468.0,0.01047471]
[1768660681252,0.01047438,95471.0,95468.0,0.06284827]
[1768660681809,0.01047438,95471.0,95468.0,0.01047471]
[1768660682026,0.02260222,95472.0,95468.0,0.06284814]
[1768660682486,0.01047438,95471.0,95467.0,0.01047482]
[1768660682682,0.06284673,95471.0,95466.0,0.01047493]
[1768660682882,0.01047449,95470.0,95467.0,0.01047482]
[1768660683030,0.01047438,95471.0,95467.0,0.06284855]
[1768660683231,0.0330766,95471.0,95467.0,0.01047482]
[1768660683437,0.01047438,95471.0,95467.0,0.01047482]
[1768660683640,0.0330766,95471.0,95467.0,0.01047482]
[1768660683856,0.01047438,95471.0,95467.0,0.06284892]
[1768660684206,0.02260222,95471.0,95468.0,0.06284824]
[1768660684341,0.02260222,95472.0,95468.0,0.06284824]
[1768660684542,0.02260222,95471.0,95468.0,0.06284824]
[1768660684760,0.02260222,95472.0,95468.0,0.06284824]
[1768660685089,0.02260222,95471.0,95468.0,0.01047471]
[1768660686339,0.0330766,95471.0,95468.0,0.01047471]
[1768660686513,0.02260222,95471.0,95468.0,0.06284817]
[1768660686713,0.02260222,95471.0,95468.0,0.01047471]
[1768660687324,0.0330766,95471.0,95468.0,0.01047471]
[1768660688143,0.08544856,95471.0,95468.0,0.01047471]
[1768660688360,0.01047449,95470.0,95467.0,0.01047482]